[Event "FRA-ch Teams Top 16-Bas 2022"]
[Site "Chartres"]
[Date "2022.06.17"]
[Round "9.21"]
[White "Real, Thibault"]
[Black "Sochacki, Wojtek"]
[Result "1/2-1/2"]
[ECO "C54"]
[WhiteElo "2262"]
[BlackElo "2324"]
[Annotator "TA"]
[PlyCount "81"]
[EventDate "2022.06.16"]
[EventType "team-tourn"]
[EventCountry "FRA"]
[SourceTitle "playchess.com"]
[Source "ChessBase"]
[SourceQuality "1"]
[TimeControl "40/5400+30:1800+30"]

{[%evp 15,81,18,16,0,7,16,10,7,41,29,36,22,26,-14,-9,-13,-12,-40,5,0,0,4,11,10,16,-6,-4,-6,-6,-8,-9,-16,-16,-23,0,0,0,-16,-16,-16,-16,-16,-16,-16,-15,-15,-15,-15,-15,-16,-15,-16,-15,-15,-13,-13,-13,-15,-15,-15,-15,-15,-15,-15,-15,-15,-15,-15]} 1. e4 {[%emt 0:00:03]} e5 {[%emt 0:06:39]} 2. Nf3 {[%emt 0:00:05]} Nc6 {[%emt 0:00:04]} 3. Bc4 {[%emt 0:00:08]} Bc5 {[%emt 0:00:37]} 4. c3 {[%emt 0:00:22]} Nf6 {[%emt 0:00:05]} 5. d3 {[%emt 0:00:06]} O-O {[%emt 0:00:11]} 6. O-O {[%emt 0:01:17]} d5 {[%emt 0:04:43]} 7. exd5 {[%emt 0:00:54]} Nxd5 {[%emt 0:00:03]} 8. Re1 {[%emt 0:06:04]} Bg4 {[%emt 0:02:43]} 9. h3 {[%emt 0:00:28] C54: Giuoco Piano: 4 c3 Nf6, main lines with 5 d4 and 5 d3.} Bh5 {[%emt 0:01:20]} 10. Nbd2 {[%emt 0:12:37][%cal Bb1d2,Bd2e4,Be4g3][%mdl 32]} Nb6 {[%emt 0:00:28]} 11. Ne4 {[%emt 0:08:22] Recently 11.Bb3 got a lot of attention.} Bd6 {[%emt 0:27:35]} 12. Bb3 {[%emt 0:07:51]} Kh8 $1 {[%emt 0:01:51]} 13. Ng3 {[%emt 0:00:57]} Bg6 {[%emt 0:00:19]} 14. d4 {[%emt 0:15:08]} exd4 {[%emt 0:03:17]} 15. Nxd4 {[%emt 0:06:04]} (15. cxd4 {seems wilder.} Re8 16. Be3 h6 17. d5) 15... Nxd4 {[%emt 0:07:35]} 16. Qxd4 {[%emt 0:02:04] [#]} (16. cxd4 {looks sharper.} a5 17. a3 Qh4 18. Qg4) 16... Bxg3 $146 {[%emt 0:02:11]} (16... c5 $5 {[%cal Rc5d4]} 17. Qg4 f5 $11) ({Predecessor:} 16... c5 17. Qg4 c4 18. Bd1 f5 19. Qf3 Re8 20. Rxe8+ Qxe8 21. Bf4 Qe1+ 22. Kh2 Bc5 {½-½ (72) Moutzouris,I (1776)-Papadopoulos,A (2019) Porto Rio 2014}) 17. fxg3 {[%emt 0:10:07]} Qxd4+ {[%emt 0:00:09]} 18. cxd4 {[%emt 0:00:07]} Rfe8 {[%emt 0:00:48]} 19. Bd2 {[%emt 0:03:59]} c6 {[%emt 0:12:39]} 20. Rxe8+ {[%emt 0:03:56]} Rxe8 {[%emt 0:00:05]} 21. Re1 {[%emt 0:00:15]} Rxe1+ {[%emt 0:00:53]} 22. Bxe1 $11 {[%emt 0:00:01][%mdl 4096] Endgame KBB-KBN} Kg8 {[%emt 0:00:23]} 23. Kf2 {[%emt 0:01:35]} Be4 {[%emt 0:00:10]} 24. Ba5 {[%emt 0:04:10]} Kf8 {[%emt 0:04:58]} 25. g4 {[%emt 0:02:53] The position is equal.} Nd5 {[%emt 0:03:00]} 26. Bxd5 {[%emt 0:04:21]} Bxd5 {[%emt 0:00:08] KB-KB} 27. Bb4+ {[%emt 0:00:26]} Ke8 {[%emt 0:00:06]} 28. a4 {[%emt 0:00:27]} Kd7 {[%emt 0:00:34]} 29. a5 {[%emt 0:02:49]} b6 {[%emt 0:00:35]} 30. axb6 {[%emt 0:03:31]} axb6 {[%emt 0:00:04]} 31. g3 {[%emt 0:02:06]} Ke6 {[%emt 0:00:03]} 32. h4 {[%emt 0:01:09]} Bb3 {[%emt 0:00:17]} 33. Ke3 {[%emt 0:00:33]} Bd1 {[%emt 0:00:08]} 34. g5 {[%emt 0:00:36]} Kd5 {[%emt 0:00:36]} 35. Bf8 {[%emt 0:00:27]} g6 {[%emt 0:00:03]} 36. b4 {[%emt 0:00:16]} Bc2 {[%emt 0:00:17]} 37. Be7 {[%emt 0:00:21]} Bb1 {[%emt 0:00:16]} 38. Bd8 {[%emt 0:00:10]} b5 {[%emt 0:00:05]} 39. Bb6 {[%emt 0:00:20]} Bc2 {[%emt 0:00:04]} 40. Kf4 {[%emt 0:00:13]} Bd1 {[%emt 0:00:05]} 41. Bc5 {[%emt 0:30:08] Weighted Error Value: White=0.05 (flawless) /Black=0.04 (flawless)} 1/2-1/2

[Event "FRA-ch Teams Top 16-Bas 2022"]
[Site "Chartres"]
[Date "2022.06.17"]
[Round "9.22"]
[White "Dutreuil, Raphael"]
[Black "Le Pen, Steven"]
[Result "1-0"]
[ECO "A45"]
[WhiteElo "2309"]
[BlackElo "2090"]
[Annotator "TA"]
[PlyCount "59"]
[EventDate "2022.06.16"]
[EventType "team-tourn"]
[EventCountry "FRA"]
[SourceTitle "playchess.com"]
[Source "ChessBase"]
[SourceQuality "1"]
[TimeControl "40/5400+30:1800+30"]

{[%evp 9,59,-6,0,-1,31,33,44,28,37,25,26,40,31,20,29,0,44,64,116,120,133,144,144,131,83,0,0,-22,-39,-44,-23,-54,336,0,296,310,285,310,714,643,29986,29987,29987,29988,29988,29989,29991,5720,29992,29993,29994,29995]} 1. d4 {[%emt 0:00:19]} Nf6 {[%emt 0:00:08]} 2. Bf4 {[%emt 0:01:11]} g6 {[%emt 0:00:18]} 3. Nc3 {[%emt 0:00:08]} d5 {[%emt 0:00:18]} 4. e3 {[%emt 0:00:22]} Bg7 {[%emt 0:00:24]} 5. h4 {[%emt 0:02:20]} h5 {[%emt 0:01:52]} 6. Nf3 {[%emt 0:01:35] A45: Trompowsky Attack.} Bg4 {[%emt 0:02:33]} 7. Qd2 {[%emt 0:00:14]} c6 {[%emt 0:05:32]} 8. Ne5 {[%emt 0:01:22] White is slightly better.} Be6 {[%emt 0:04:12] [#]} 9. f3 $146 {[%emt 0:24:37]} ({Predecessor:} 9. O-O-O Nbd7 10. f3 Nxe5 11. Bxe5 b5 12. Kb1 a5 13. Bd3 O-O 14. Rdg1 Qd7 15. Qe2 {1-0 (42) Livaic,L (2507)-Villacorta Nicolas,D (2153) Tornelo INT 2020}) 9... Nfd7 {[%emt 0:07:07]} 10. Nd3 {[%emt 0:01:28]} a5 {[%emt 0:09:44]} 11. Be2 {[%emt 0:04:37]} b5 {[%emt 0:03:44]} 12. g4 {[%emt 0:01:22]} hxg4 {[%emt 0:16:47]} 13. fxg4 {[%emt 0:00:41]} b4 {[%emt 0:01:36]} (13... Nf6 $14) 14. Na4 $16 {[%emt 0:09:53]} Nf6 {[%emt 0:02:30]} 15. Nac5 $36 {[%emt 0:00:44][%mdl 2048] White is on the roll.} Bxg4 {[%emt 0:04:28]} 16. Bxg4 {[%emt 0:00:19]} Nxg4 {[%emt 0:00:07] [#]} 17. Qg2 {[%emt 0:02:07] White is more active.} (17. Ne6 $1 $16 {[%cal Re6d8]} fxe6 18. Qg2) 17... Qc8 $11 {[%emt 0:08:02]} 18. Rg1 {[%emt 0:10:09]} Nf6 {[%emt 0:04:21]} 19. Bxb8 {[%emt 0:07:34]} Rxb8 {[%emt 0:03:08]} 20. Ne5 {[%emt 0:00:18][%cal Oe5f7] Hoping for Nxf7!} Bh6 $2 {[%emt 0:09:03][%mdl 8192] [#]} (20... Rxh4 $15 {keeps the upper hand.} 21. O-O-O Rb5) 21. Kd2 $2 {[%emt 0:06:32]} (21. Nxf7 $1 $18 {[%mdl 512]} Rh7 22. Qxg6 Rxf7 23. Qxh6) 21... Qf5 $2 {[%emt 0:08:19][%mdl 8192]} (21... Rg8 $11 {and Black stays safe.}) 22. Raf1 $18 {[%emt 0:04:09]} (22. Nxc6 Rc8 23. Raf1 Qh5 $11) 22... Qh5 {[%emt 0:00:29]} 23. Qh3 {[%emt 0:07:36][%cal Of1f6] And now Rxf6! would win. Really sharp!} ({And not} 23. Nxc6 Rc8 24. Qh2 Kf8 25. Rxf6 (25. Nxa5 $2 Ng4 $19) 25... exf6 26. Qd6+ Kg7 27. Ne6+ Kh7 $11) 23... Bg7 {[%emt 0:06:07] [#]} (23... O-O $2 24. Rf5 Bxe3+ 25. Kxe3 Qh6+ 26. Ke2 $18) (23... Qxh4 24. Qxh4 Bxe3+ 25. Kxe3 Rxh4) 24. Nxf7 $1 {[%emt 0:08:38][%cal Of7d6][%mdl 512] White threatens Nd6+! and mate. Pair of Knights!} Qxh4 {[%emt 0:00:09] [#]} (24... O-O 25. Ne5) 25. Nd6+ $1 {[%emt 0:01:19][%mdl 512]} exd6 {[%emt 0:01:16]} 26. Qe6+ {[%emt 0:00:03]} Kd8 {[%emt 0:00:08]} 27. Qxd6+ {[%emt 0:00:22]} Kc8 {[%emt 0:00:35]} 28. Qxc6+ {[%emt 0:00:02]} Kd8 {[%emt 0:00:04] [#]} 29. Rxf6 $1 {[%emt 0:00:56][%csl Gc5][%cal Rc6d7][%mdl 512]} Qh2+ {[%emt 0:00:33]} (29... Qh3 30. Rf7) 30. Kd3 {[%emt 0:00:02] Weighted Error Value: White=0.26 (precise) /Black=0.71} 1-0

[Event "FRA-ch Teams Top 16-Bas 2022"]
[Site "Chartres"]
[Date "2022.06.17"]
[Round "9.23"]
[White "Prodhomme, Boris"]
[Black "Da Silva, Quentin"]
[Result "1-0"]
[ECO "E73"]
[WhiteElo "2045"]
[BlackElo "2171"]
[Annotator "NA RC"]
[PlyCount "101"]
[EventDate "2022.06.16"]
[EventType "team-tourn"]
[EventCountry "FRA"]
[SourceTitle "playchess.com"]
[Source "ChessBase"]
[SourceQuality "1"]
[TimeControl "40/5400+30:1800+30"]

1. d4 {[%emt 0:01:09]} Nf6 {[%emt 0:00:18]} 2. c4 {[%emt 0:00:05]} g6 {[%emt 0:00:24]} 3. Nc3 {[%emt 0:00:13]} Bg7 {[%emt 0:00:13]} 4. e4 {[%emt 0:00:10]} d6 {[%emt 0:00:19]} 5. Be2 {[%emt 0:00:12]} O-O {[%emt 0:00:23]} 6. Be3 {[%emt 0:00:10]} Nbd7 {[%emt 0:04:45]} 7. g4 {[%emt 0:08:24]} e5 {[%emt 0:04:43]} 8. d5 {[%emt 0:00:36]} Nc5 {[%emt 0:01:19]} 9. f3 {[%emt 0:00:09]} a5 {[%emt 0:00:34]} 10. h4 {[%emt 0:00:10]} c6 {[%emt 0:13:16]} 11. h5 {[%emt 0:01:15]} cxd5 {[%emt 0:02:14]} 12. cxd5 {[%emt 0:00:25]} Bd7 {[%emt 0:03:39]} 13. Nh3 {[%emt 0:10:00]} a4 {[%emt 1:04:53]} 14. Qd2 {[%emt 0:05:47]} Qa5 {[%emt 0:00:00]} 15. Nf2 {[%emt 0:11:16]} b5 {[%emt 0:00:00]} 16. h6 {[%emt 0:04:52]} Bh8 {[%emt 0:00:00]} 17. Nd3 {[%emt 0:01:04]} Nxd3+ {[%emt 0:00:00]} 18. Bxd3 {[%emt 0:03:10]} b4 {[%emt 0:00:00]} 19. Nd1 {[%emt 0:00:22]} Rfc8 {[%emt 0:00:00]} 20. O-O {[%emt 0:03:12]} Ne8 {[%emt 0:00:00]} 21. Qf2 {[%emt 0:01:32]} Bb5 {[%emt 0:00:00]} 22. Qe2 {[%emt 0:03:14]} Bxd3 {[%emt 0:00:00]} 23. Qxd3 {[%emt 0:44:33]} Rc7 {[%emt 0:00:00]} 24. Nf2 {[%emt 0:00:00]} Rac8 {[%emt 0:00:00]} 25. Rac1 {[%emt 0:00:00]} Bf6 {[%emt 0:00:00]} 26. Rxc7 {[%emt 0:00:00]} Rxc7 {[%emt 0:00:00]} 27. g5 {[%emt 0:00:00]} Bd8 {[%emt 0:00:00]} 28. Ng4 {[%emt 0:00:00]} f6 {[%emt 0:00:56]} 29. f4 {[%emt 0:00:00]} exf4 {[%emt 0:00:36]} 30. Bxf4 {[%emt 0:00:00]} fxg5 {[%emt 0:01:03]} 31. Be3 {[%emt 0:00:00]} Rf7 {[%emt 0:02:20]} 32. Rxf7 {[%emt 0:00:00]} Kxf7 {[%emt 0:00:04]} 33. e5 {[%emt 0:00:00]} Bb6 {[%emt 0:02:28]} 34. Qf1+ {[%emt 0:00:00]} Ke7 {[%emt 0:00:58]} 35. exd6+ {[%emt 0:00:00]} Kd8 {[%emt 0:00:33]} 36. Qf7 {[%emt 0:00:10]} Bxe3+ {[%emt 0:00:41]} 37. Nxe3 {[%emt 0:00:03]} Nxd6 {[%emt 0:01:15]} 38. Qf6+ {[%emt 0:00:19]} Kd7 {[%emt 0:00:53]} 39. Qe6+ {[%emt 0:00:09]} Kc7 {[%emt 0:00:16]} 40. Qe7+ {[%emt 0:00:11]} Kc8 {[%emt 0:00:40]} 41. Qxd6 {[%emt 0:30:16]} b3 {[%emt 0:04:15]} 42. axb3 {[%emt 0:00:00]} axb3 {[%emt 0:05:29]} 43. Qf8+ {[%emt 0:00:00]} Kb7 {[%emt 0:07:45]} 44. Qg7+ {[%emt 0:00:00]} Ka6 {[%emt 0:02:46]} 45. Qd4 {[%emt 0:00:00]} g4 {[%emt 0:05:43]} 46. d6 {[%emt 0:00:00]} g3 {[%emt 0:01:10]} 47. d7 {[%emt 0:00:00]} Qd8 {[%emt 0:00:41]} 48. Qa4+ {[%emt 0:00:00]} Kb7 {[%emt 0:00:35]} 49. Qxb3+ {[%emt 0:00:00]} Ka7 {[%emt 0:02:26]} 50. Nd5 {[%emt 0:00:00]} Qa5 {[%emt 0:02:01]} 51. Qb6+ {[%emt 0:00:00]} 1-0

[Event "FRA-ch Teams Top 16-Bas 2022"]
[Site "Chartres"]
[Date "2022.06.17"]
[Round "9.24"]
[White "Afraoui, Solenn"]
[Black "Ruhlmann, Helene"]
[Result "1-0"]
[ECO "B91"]
[WhiteElo "1945"]
[BlackElo "1779"]
[Annotator "NA RC"]
[PlyCount "75"]
[EventDate "2022.06.16"]
[EventType "team-tourn"]
[EventCountry "FRA"]
[SourceTitle "playchess.com"]
[Source "ChessBase"]
[SourceQuality "1"]
[TimeControl "40/5400+30:1800+30"]

1. e4 {[%emt 0:00:10]} c5 {[%emt 0:00:06]} 2. Nf3 {[%emt 0:00:14]} d6 {[%emt 0:00:06]} 3. d4 {[%emt 0:00:11]} cxd4 {[%emt 0:00:09]} 4. Nxd4 {[%emt 0:00:06]} Nf6 {[%emt 0:00:09]} 5. Nc3 {[%emt 0:00:12]} a6 {[%emt 0:00:11]} 6. g3 {[%emt 0:00:29]} e5 {[%emt 0:00:32]} 7. Nb3 {[%emt 0:00:25]} Be7 {[%emt 0:07:09]} 8. a4 {[%emt 0:00:26]} Nc6 {[%emt 0:01:07]} 9. Bg2 {[%emt 0:01:24]} Nb4 {[%emt 0:01:20]} 10. O-O {[%emt 0:07:16]} Bg4 {[%emt 0:09:21]} 11. f3 {[%emt 0:06:44]} Be6 {[%emt 0:00:07]} 12. f4 {[%emt 0:11:17]} Qb6+ {[%emt 0:13:32]} 13. Kh1 {[%emt 0:00:29]} Rc8 {[%emt 0:00:42]} 14. a5 {[%emt 0:07:10]} Qa7 {[%emt 0:10:21]} 15. Ra4 {[%emt 0:10:42]} Bxb3 {[%emt 0:14:11]} 16. cxb3 {[%emt 0:02:51]} Nc6 {[%emt 0:00:25]} 17. Re1 {[%emt 0:13:40]} b5 {[%emt 0:03:21]} 18. axb6 {[%emt 0:06:21]} Qxb6 {[%emt 0:00:06]} 19. Be3 {[%emt 0:00:27]} Qb7 {[%emt 0:01:14]} 20. Nd5 {[%emt 0:09:30]} Nxd5 {[%emt 0:00:30]} 21. Qxd5 {[%emt 0:00:30]} O-O {[%emt 0:06:48]} 22. Rc1 {[%emt 0:04:16]} Qb5 {[%emt 0:07:06]} 23. Bf1 {[%emt 0:04:32]} Qxd5 {[%emt 0:00:12]} 24. exd5 {[%emt 0:00:04]} Nd4 {[%emt 0:00:18]} 25. Rxc8 {[%emt 0:04:58]} Rxc8 {[%emt 0:00:04]} 26. Bc4 {[%emt 0:01:31]} Rb8 {[%emt 0:01:58]} 27. fxe5 {[%emt 0:01:03]} dxe5 {[%emt 0:10:04]} 28. Rxa6 {[%emt 0:00:53]} Nc2 {[%emt 0:00:25]} 29. Ba7 {[%emt 0:02:15]} Rd8 {[%emt 0:01:27]} 30. Bb6 {[%emt 0:00:29]} Rc8 {[%emt 0:00:25]} 31. Ra7 {[%emt 0:00:49]} Bf8 {[%emt 0:00:47]} 32. Bc7 {[%emt 0:00:49]} Bc5 {[%emt 0:02:45]} 33. Rb7 {[%emt 0:00:13]} Nd4 {[%emt 0:01:00]} 34. d6 {[%emt 0:02:08]} Nc6 {[%emt 0:01:16]} 35. Bd5 {[%emt 0:01:29]} Nd8 {[%emt 0:00:06]} 36. d7 {[%emt 0:01:15]} Ra8 {[%emt 0:00:37]} 37. Rb5 {[%emt 0:00:41]} Ra1+ {[%emt 0:00:57]} 38. Kg2 {[%emt 0:00:06]} 1-0

[Event "FRA-ch Teams Top 16-Bas 2022"]
[Site "Chartres"]
[Date "2022.06.17"]
[Round "9.25"]
[White "Vernay, Clovis"]
[Black "Feller, Sebastien"]
[Result "1/2-1/2"]
[ECO "D14"]
[WhiteElo "2523"]
[BlackElo "2569"]
[Annotator "TA"]
[PlyCount "23"]
[EventDate "2022.06.16"]
[EventType "team-tourn"]
[EventCountry "FRA"]
[SourceTitle "playchess.com"]
[Source "ChessBase"]
[SourceQuality "1"]
[TimeControl "40/5400+30:1800+30"]

{[%evp 20,21,0,0]} 1. d4 {[%emt 0:00:02]} d5 {[%emt 0:00:08]} 2. c4 {[%emt 0:00:06]} c6 {[%emt 0:00:23]} 3. cxd5 {[%emt 0:00:07]} cxd5 {[%emt 0:00:04]} 4. Bf4 {[%emt 0:00:08]} Nc6 {[%emt 0:01:23]} 5. e3 {[%emt 0:00:06]} Nf6 {[%emt 0:00:06]} 6. Nc3 {[%emt 0:00:05]} Bf5 {[%emt 0:00:52]} 7. Bd3 {[%emt 0:00:06]} Bxd3 {[%emt 0:00:27]} 8. Qxd3 {[%emt 0:00:06]} e6 {[%emt 0:00:42]} 9. Nf3 {[%emt 0:00:05]} Bd6 {[%emt 0:00:29]} 10. Bxd6 {[%emt 0:00:06]} Qxd6 {[%emt 0:00:03]} 11. O-O {[%emt 0:00:09] [#]} {Predecessor:} O-O $146 {D14: Slav Defence: Exchange variation with ...Bf5.} 12. Rfc1 {½-½ (12) Korobov,A (2699)-Bernadskiy,V (2589) Cattolica 2022} 1/2-1/2

[Event "FRA-ch Teams Top 16-Bas 2022"]
[Site "Chartres"]
[Date "2022.06.17"]
[Round "9.26"]
[White "Postny, Evgeny"]
[Black "Brailly-Vignal, Bastien"]
[Result "1-0"]
[ECO "E11"]
[WhiteElo "2563"]
[BlackElo "2372"]
[Annotator "TA"]
[PlyCount "95"]
[EventDate "2022.06.16"]
[EventType "team-tourn"]
[EventCountry "FRA"]
[SourceTitle "playchess.com"]
[Source "ChessBase"]
[SourceQuality "1"]
[TimeControl "40/5400+30:1800+30"]

{[%evp 14,95,39,32,27,16,21,18,18,26,29,8,37,44,49,40,32,29,71,72,84,61,70,63,67,57,52,56,60,56,62,25,47,31,46,0,0,0,0,0,50,51,44,54,51,47,63,54,65,56,117,122,169,160,179,148,137,143,163,136,139,52,80,56,52,66,90,8,312,277,250,248,373,364,839,820,980,958,29978,29979,29979,29976,29991,29992]} 1. d4 {[%emt 0:00:04]} Nf6 {[%emt 0:00:09]} 2. Nf3 {[%emt 0:00:08]} e6 {[%emt 0:00:19]} 3. c4 {[%emt 0:00:08]} Bb4+ {[%emt 0:00:22]} 4. Bd2 {[%emt 0:00:07]} a5 {[%emt 0:00:13]} 5. g3 {[%emt 0:00:15]} d6 {[%emt 0:01:28]} 6. Bg2 {[%emt 0:00:09]} Nbd7 {[%emt 0:00:18]} 7. O-O {[%emt 0:00:11]} e5 {[%emt 0:00:14]} 8. Be3 {[%emt 0:00:14] 8.e3 is setting a new trend.} O-O {[%emt 0:07:30] E11: Bogo-Indian.} 9. a3 {[%emt 0:02:31]} exd4 {[%emt 0:00:46]} 10. Bxd4 {[%emt 0:00:07]} Bc5 {[%emt 0:00:06] The position is equal.} 11. Nc3 {[%emt 0:00:08]} Re8 {[%emt 0:02:37]} 12. Qc2 {[%emt 0:00:22]} Bxd4 {[%emt 0:08:31]} 13. Nxd4 {[%emt 0:00:46]} Ne5 {[%emt 0:00:17]} 14. Rad1 {[%emt 0:05:51][%cal Oc4c5]} c6 {[%emt 0:23:17]} 15. b3 {[%emt 0:06:05] [#]} Qe7 $146 {[%emt 0:03:52]} ({Predecessor:} 15... Qc7 16. Rd2 Bd7 17. Rfd1 Rad8 18. Ne4 Nxe4 19. Bxe4 g6 20. Bg2 Bc8 21. h3 Qb6 22. Qc3 Qc5 {0-1 (70) Stanach,F (2062)-Zakrzewski,M (2233) Jastrzebia Gora 2016}) 16. e4 {[%emt 0:03:29]} g6 {[%emt 0:07:54]} 17. h3 {[%emt 0:11:39]} Ned7 {[%emt 0:04:40]} 18. Rfe1 {[%emt 0:03:48]} Nb6 {[%emt 0:02:35][%cal Oa5a4]} 19. a4 {[%emt 0:17:01]} Nbd7 {[%emt 0:02:09]} 20. f4 {[%emt 0:03:07]} Nc5 {[%emt 0:00:55]} 21. Qf2 {[%emt 0:02:09]} Qf8 {[%emt 0:04:29]} 22. Re3 {[%emt 0:04:44]} Qh6 {[%emt 0:05:02]} 23. Qf1 {[%emt 0:01:10]} Qg7 {[%emt 0:04:43]} 24. Nde2 {[%emt 0:07:29]} (24. g4 $14) 24... Bf5 $11 {[%emt 0:07:34]} 25. Rd4 {[%emt 0:03:42]} Ncxe4 {[%emt 0:05:21]} 26. Bxe4 {[%emt 0:08:04] [#] And now Qg2 would win.} Nxe4 {[%emt 0:00:34]} (26... c5 $11 27. Rxd6 Nxe4 28. Nxe4 Bxe4) 27. Rdxe4 $14 {[%emt 0:01:45]} (27. Nxe4 d5 $11) (27. Rexe4 {is interesting.} Bxe4 28. Rxe4 Rxe4 29. Nxe4 Re8 30. N4c3) 27... Bxe4 {[%emt 0:00:07]} 28. Rxe4 {[%emt 0:00:05]} (28. Nxe4 $2 d5 29. cxd5 cxd5 $19) 28... Rxe4 {[%emt 0:02:37]} 29. Nxe4 {[%emt 0:00:04]} d5 {[%emt 0:00:19]} 30. cxd5 {[%emt 0:00:24]} cxd5 {[%emt 0:00:01]} 31. Ng5 {[%emt 0:00:36]} Rc8 {[%emt 0:02:39]} (31... Re8 $14 32. Qd1 Qf8) 32. Qd1 $16 {[%emt 0:00:43]} h6 {[%emt 0:01:18]} (32... Rd8 $16 {might work better.}) 33. Nf3 $18 {[%emt 0:00:05]} Qb2 {[%emt 0:00:13]} 34. Nfd4 {[%emt 0:01:22] Prevents Qc2.} Re8 {[%emt 0:00:09]} 35. Kf2 {[%emt 0:02:12]} Re4 {[%emt 0:00:12]} 36. Kf3 {[%emt 0:04:42]} h5 {[%emt 0:00:35]} 37. g4 {[%emt 0:02:42]} ({White should try} 37. h4 $16) 37... hxg4+ $14 {[%emt 0:00:52]} 38. hxg4 {[%emt 0:00:05]} b6 {[%emt 0:00:55]} 39. g5 {[%emt 0:03:31]} Kf8 {[%emt 0:00:41]} 40. Nb5 {[%emt 0:05:36] Pair of Knights!} (40. Qd3 $16) 40... Qh8 $2 {[%emt 0:01:47][%mdl 8192] This costs Black the game.} (40... Rxe2 $1 $11 {and Black stays safe.} 41. Qxe2 Qxb3+ 42. Qe3 Qxa4) 41. Ng3 $18 {[%emt 0:30:32]} Qh4 {[%emt 0:07:14]} 42. Qd2 {[%emt 0:00:00] Really sharp!} (42. Qxd5 Qxf4+ 43. Kg2 Re5 44. Qd6+ Kg8 45. Qd8+ Kg7 46. Qxb6 Qxg5 $17) 42... Rb4 {[%emt 0:04:07]} (42... Qh3 $142 43. Nc7 (43. Qxd5 Re1 $18) 43... Re7 44. Nxd5 Re8 45. Nxb6 Qe6) 43. Qe3 {[%emt 0:00:00] Nd6 is the strong threat. Active counter play!} ({Stronger than} 43. Qxd5 Rxf4+ 44. Kg2 Rg4 45. Qd6+ Kg8 $11) 43... Qh8 $2 {[%emt 0:05:07] [#]} (43... Qh3 44. Nd4 (44. Kf2 Qh2+ 45. Kf1 Qh4 $11) 44... Qc8) 44. Nd6 $1 {[%emt 0:00:00] White wants to mate with Qe8+.} Kg7 {[%emt 0:06:57]} 45. Qe7 {[%emt 0:00:00][%csl Gd6][%cal Re7f7]} Qh3 {[%emt 0:07:48]} 46. Qxf7+ {[%emt 0:00:00] White mates.} Kh8 {[%emt 0:00:04]} 47. Qxd5 {[%emt 0:00:00]} Qh7 {[%emt 0:00:03]} 48. Nf7+ {[%emt 0:00:00] Weighted Error Value: White=0.12 (very precise) /Black=0.45} 1-0